[Event "Turkish Youth Championships 2023"]
[Site "Samsun"]
[Date "2023.05.25"]
[Round "9.6"]
[White "Kavri, Yusuf Eren"]
[Black "Alagoz, Zumra Meryem"]
[Result "1-0"]
[WhiteElo "2029"]
[BlackElo "1699"]
[PlyCount "73"]
[EventDate "2023.05.19"]
[EventType "swiss"]
[EventCountry "TUR"]
[TimeControl "5400+30"]
[BlackClock "0:10:50"]

1. d4 d5 2. c4 c6 3. Nf3 Nf6 4. Nc3 dxc4 5. a4 Bf5 6. Ne5 Na6 7. e3 {[%emt 0:01:00]} Nb4 {[%emt 0:08:00]} 8. Bxc4 {[%emt 0:00:30]} e6 {[%emt 0:00:30]} 9. O-O {[%emt 0:00:00]} Bd6 {[%emt 0:03:30]} 10. Qe2 {[%emt 0:15:00]} Nbd5 {[%emt 0:12:30]} 11. f3 {[%emt 0:10:30]} h6 {[%emt 0:12:30]} 12. e4 {[%emt 0:11:30]} Nxc3 {[%emt 0:00:00]} 13. bxc3 {[%emt 0:00:30]} Bh7 {[%emt 0:00:00]} 14. Nxf7 {[%emt 0:18:30]} Kxf7 {[%emt 0:01:30]} 15. e5 {[%emt 0:00:30]} Nd5 {[%emt 0:00:30]} 16. exd6 {[%emt 0:00:30]} Qxd6 {[%emt 0:00:00]} 17. Ba3 {[%emt 0:01:30]} Qd7 {[%emt 0:01:00]} 18. Rfe1 {[%emt 0:00:30]} Rhe8 {[%emt 0:00:30]} 19. Qd2 {[%emt 0:00:30]} b5 {[%emt 0:13:30]} 20. axb5 {[%emt 0:08:30]} cxb5 {[%emt 0:00:00]} 21. Bb3 {[%emt 0:00:00]} a5 {[%emt 0:01:00]} 22. Bc5 {[%emt 0:00:00]} Kg8 {[%emt 0:09:30]} 23. c4 {[%emt 0:05:30]} Nc7 {[%emt 0:03:30]} 24. cxb5 {[%emt 0:00:30]} Nxb5 {[%emt 0:04:30]} 25. Qe3 {[%emt 0:05:30]} Nc7 {[%emt 0:06:30]} 26. Ba4 {[%emt 0:00:30]} Nb5 {[%emt 0:00:00]} 27. Re2 {[%emt 0:00:30]} Reb8 {[%emt 0:01:00]} 28. Qxe6+ {[%emt 0:07:56]} Qxe6 {[%emt 0:00:30]} 29. Rxe6 {[%emt 0:00:00]} Bd3 {[%emt 0:04:30]} 30. Rc1 {[%emt 0:02:35]} Nc7 {[%emt 0:03:12]} 31. Re3 {[%emt 0:00:38]} Rb1 {[%emt 0:00:30]} 32. Rxb1 {[%emt 0:00:37]} Bxb1 {[%emt 0:00:02]} 33. d5 {[%emt 0:01:00]} Ba2 {[%emt 0:03:32]} 34. d6 {[%emt 0:00:01]} Ne6 {[%emt 0:00:03]} 35. d7 {[%emt 0:01:20]} Rb8 {[%emt 0:02:02]} 36. Be7 {[%emt 0:00:23]} Kf7 {[%emt 0:02:30]} 37. Rxe6 {[%emt 0:00:14]} 1-0

[Event "Turkish Youth Championships 2023"]
[Site "Samsun"]
[Date "2023.05.25"]
[Round "9.7"]
[White "Eroz, Enis"]
[Black "Cicek, Bilal Emre"]
[Result "1-0"]
[WhiteElo "1830"]
[BlackElo "1600"]
[PlyCount "123"]
[EventDate "2023.05.19"]
[EventType "swiss"]
[EventCountry "TUR"]
[TimeControl "5400+30"]
[BlackClock "0:07:07"]

1. e4 c5 2. Nf3 e6 3. d4 cxd4 4. Nxd4 Nf6 5. Bd3 Nc6 6. Nxc6 bxc6 7. Bf4 d5 8. Nd2 {[%emt 0:01:30]} Qb6 {[%emt 0:08:30]} 9. c4 {[%emt 0:15:30]} Ba6 {[%emt 0:15:30]} 10. O-O {[%emt 0:02:30]} Be7 {[%emt 0:00:30]} 11. exd5 {[%emt 0:04:30]} Nxd5 {[%emt 0:07:30]} 12. cxd5 {[%emt 0:17:30]} Bxd3 {[%emt 0:00:30]} 13. dxe6 {[%emt 0:00:30]} Bxf1 {[%emt 0:02:30]} 14. exf7+ {[%emt 0:00:00]} Kf8 {[%emt 0:11:30]} 15. Qxf1 {[%emt 0:08:00]} Qd4 {[%emt 0:00:30]} 16. g3 {[%emt 0:00:30]} Rd8 {[%emt 0:10:30]} 17. Re1 {[%emt 0:03:30]} Qd5 {[%emt 0:09:30]} 18. Qe2 {[%emt 0:07:30]} Qxf7 {[%emt 0:00:30]} 19. Nc4 {[%emt 0:05:30]} Bf6 {[%emt 0:04:30]} 20. Bd6+ {[%emt 0:00:30]} Kg8 {[%emt 0:00:00]} 21. Bc5 {[%emt 0:09:30]} h6 {[%emt 0:04:00]} 22. b4 {[%emt 0:04:30]} Kh7 {[%emt 0:00:30]} 23. Qe4+ {[%emt 0:00:30]} Qg6 {[%emt 0:01:30]} 24. Qxg6+ {[%emt 0:02:35]} Kxg6 {[%emt 0:00:30]} 25. Re6 {[%emt 0:00:30]} Rd1+ {[%emt 0:03:30]} 26. Kg2 {[%emt 0:00:01]} Rc8 {[%emt 0:01:30]} 27. Bxa7 {[%emt 0:11:04]} Kf7 {[%emt 0:02:02]} 28. Re2 {[%emt 0:00:29]} Ra8 {[%emt 0:04:51]} 29. Bc5 {[%emt 0:00:22]} Ra6 {[%emt 0:01:31]} 30. Re4 {[%emt 0:02:29]} Kg6 {[%emt 0:01:45]} 31. a3 {[%emt 0:00:53]} Kf5 {[%emt 0:00:29]} 32. f3 {[%emt 0:00:33]} Rc1 {[%emt 0:00:41]} 33. g4+ {[%emt 0:00:07]} Kg6 {[%emt 0:00:21]} 34. Kg3 {[%emt 0:00:12]} Rc3 {[%emt 0:00:41]} 35. h4 {[%emt 0:00:16]} Ra8 {[%emt 0:00:21]} 36. h5+ {[%emt 0:00:53]} Kh7 {[%emt 0:00:13]} 37. Kg2 {[%emt 0:00:53]} Rd8 {[%emt 0:00:47]} 38. a4 {[%emt 0:00:12]} Rdd3 {[%emt 0:02:04]} 39. Ne3 {[%emt 0:00:05]} Bg5 {[%emt 0:00:37]} 40. f4 {[%emt 0:00:15]} Bd8 {[%emt 0:00:41]} 41. Kf3 {[%emt 0:00:32]} Rd2 {[%emt 0:00:38]} 42. Kg3 {[%emt 0:00:56]} Rc1 {[%emt 0:01:00]} 43. Nf5 {[%emt 0:01:35]} Ra2 {[%emt 0:01:53]} 44. Re8 {[%emt 0:00:34]} Rc3+ {[%emt 0:01:42]} 45. Ne3 {[%emt 0:00:09]} Bf6 {[%emt 0:00:19]} 46. a5 {[%emt 0:00:05]} Rd3 {[%emt 0:00:24]} 47. Re4 {[%emt 0:00:44]} Kg8 {[%emt 0:00:10]} 48. Kf3 {[%emt 0:01:49]} Kf7 {[%emt 0:00:52]} 49. Bb6 {[%emt 0:01:23]} Bh4 {[%emt 0:00:29]} 50. Rc4 {[%emt 0:00:00]} Rd6 {[%emt 0:00:51]} 51. Nf5 {[%emt 0:01:19]} Ra3+ {[%emt 0:00:30]} 52. Be3 {[%emt 0:00:30]} Re6 {[%emt 0:00:30]} 53. a6 {[%emt 0:00:00]} Bd8 {[%emt 0:00:47]} 54. a7 {[%emt 0:00:00]} Bf6 {[%emt 0:00:42]} 55. Rc2 {[%emt 0:01:45]} Ke8 {[%emt 0:00:54]} 56. b5 {[%emt 0:00:10]} Kd7 {[%emt 0:00:30]} 57. Rd2+ {[%emt 0:01:42]} Kc8 {[%emt 0:00:30]} 58. Nd6+ {[%emt 0:00:01]} Rxd6 {[%emt 0:00:21]} 59. Rxd6 {[%emt 0:00:30]} cxb5 {[%emt 0:00:00]} 60. Rb6 {[%emt 0:00:10]} Rxa7 {[%emt 0:00:19]} 61. Rxf6 {[%emt 0:00:00]} Ra3 {[%emt 0:00:17]} 62. Rb6 {[%emt 0:00:00]} 1-0

[Event "Turkish Youth Championships 2023"]
[Site "Samsun"]
[Date "2023.05.25"]
[Round "9.11"]
[White "Zengin, Ovgu"]
[Black "Saka, Omer"]
[Result "0-1"]
[WhiteElo "1528"]
[BlackElo "1843"]
[PlyCount "120"]
[EventDate "2023.05.19"]
[EventType "swiss"]
[EventCountry "TUR"]
[TimeControl "5400+30"]
[WhiteClock "0:11:19"]

1. e4 c5 2. Nf3 d6 3. Bb5+ Nd7 4. O-O {[%emt 0:01:30]} a6 {[%emt 0:03:30]} 5. Bd3 {[%emt 0:00:30]} Ngf6 {[%emt 0:03:30]} 6. c3 {[%emt 0:01:30]} e6 {[%emt 0:01:30]} 7. Bc2 {[%emt 0:00:30]} b5 {[%emt 0:01:30]} 8. d4 {[%emt 0:02:30]} Bb7 {[%emt 0:01:30]} 9. Re1 {[%emt 0:00:30]} Be7 {[%emt 0:04:30]} 10. Nbd2 {[%emt 0:03:30]} Qc7 {[%emt 0:02:30]} 11. Nf1 {[%emt 0:03:30]} O-O {[%emt 0:08:30]} 12. Ng3 {[%emt 0:02:30]} cxd4 {[%emt 0:00:30]} 13. cxd4 {[%emt 0:00:30]} Rfc8 {[%emt 0:00:30]} 14. Bd3 {[%emt 0:03:30]} Bf8 {[%emt 0:09:30]} 15. Be3 {[%emt 0:01:30]} g6 {[%emt 0:04:30]} 16. Qd2 {[%emt 0:01:30]} Nb6 {[%emt 0:02:30]} 17. b3 {[%emt 0:00:30]} b4 {[%emt 0:07:30]} 18. Rac1 {[%emt 0:02:30]} Qd8 {[%emt 0:03:30]} 19. Bg5 {[%emt 0:07:30]} Be7 {[%emt 0:03:30]} 20. Rxc8 {[%emt 0:06:30]} Rxc8 {[%emt 0:05:30]} 21. Rc1 {[%emt 0:01:30]} a5 {[%emt 0:05:30]} 22. Rxc8 {[%emt 0:05:30]} Nxc8 {[%emt 0:00:30]} 23. Qc2 {[%emt 0:01:30]} d5 {[%emt 0:03:30]} 24. e5 {[%emt 0:03:30]} Nd7 {[%emt 0:01:30]} 25. Bxe7 {[%emt 0:04:30]} Nxe7 {[%emt 0:00:30]} 26. h4 {[%emt 0:00:30]} Qc8 {[%emt 0:10:50]} 27. Qxc8+ {[%emt 0:01:30]} Bxc8 {[%emt 0:01:30]} 28. h5 {[%emt 0:01:30]} Kg7 {[%emt 0:01:27]} 29. hxg6 {[%emt 0:05:30]} hxg6 {[%emt 0:00:30]} 30. Ne2 {[%emt 0:00:30]} Nb8 {[%emt 0:00:46]} 31. Ne1 {[%emt 0:00:30]} Ba6 {[%emt 0:00:32]} 32. f4 {[%emt 0:00:30]} Nf5 {[%emt 0:01:35]} 33. Bxa6 {[%emt 0:00:30]} Nxa6 {[%emt 0:00:16]} 34. Kf2 {[%emt 0:00:30]} Nc7 {[%emt 0:00:53]} 35. g4 {[%emt 0:00:30]} Ne7 {[%emt 0:00:34]} 36. Nd3 {[%emt 0:02:30]} g5 {[%emt 0:03:03]} 37. Ke3 {[%emt 0:05:30]} gxf4+ {[%emt 0:00:41]} 38. Kxf4 {[%emt 0:00:30]} Kg6 {[%emt 0:01:02]} 39. Ne1 {[%emt 0:06:30]} Nc6 {[%emt 0:01:05]} 40. Ng2 {[%emt 0:02:30]} Nb5 {[%emt 0:00:32]} 41. Nh4+ {[%emt 0:00:30]} Kh6 {[%emt 0:01:24]} 42. g5+ {[%emt 0:04:30]} Kh5 {[%emt 0:04:03]} 43. Nf3 {[%emt 0:00:53]} Nc3 {[%emt 0:00:29]} 44. Ng3+ {[%emt 0:01:23]} Kg6 {[%emt 0:00:04]} 45. Nh4+ {[%emt 0:01:17]} Kh7 {[%emt 0:01:03]} 46. g6+ {[%emt 0:02:40]} fxg6 {[%emt 0:00:48]} 47. Nf3 {[%emt 0:00:18]} Kg7 {[%emt 0:01:01]} 48. Ke3 {[%emt 0:01:01]} Nxa2 {[%emt 0:00:26]} 49. Ng5 {[%emt 0:00:43]} Nd8 {[%emt 0:00:21]} 50. Ne2 {[%emt 0:00:44]} Kh6 {[%emt 0:00:29]} 51. Nf3 {[%emt 0:02:31]} g5 {[%emt 0:00:22]} 52. Nh2 {[%emt 0:00:42]} Kh5 {[%emt 0:00:30]} 53. Ng3+ {[%emt 0:02:18]} Kg6 {[%emt 0:00:01]} 54. Ne2 {[%emt 0:00:23]} Nc3 {[%emt 0:00:22]} 55. Nxc3 {[%emt 0:00:29]} bxc3 {[%emt 0:00:30]} 56. Kd3 {[%emt 0:00:30]} Kf5 {[%emt 0:00:30]} 57. Kxc3 {[%emt 0:00:30]} Nc6 {[%emt 0:00:30]} 58. Kd3 {[%emt 0:00:30]} Kf4 {[%emt 0:00:30]} 59. Nf1 {[%emt 0:00:30]} g4 {[%emt 0:00:30]} 60. Ne3 {[%emt 0:00:30]} Kf3 {[%emt 0:00:30]} 0-1

[Event "Turkish Youth Championships 2023"]
[Site "Samsun"]
[Date "2023.05.25"]
[Round "9.12"]
[White "Dogan, Umut Anil"]
[Black "Cakmak, Kursat Kagan"]
[Result "0-1"]
[WhiteElo "1857"]
[BlackElo "1498"]
[PlyCount "108"]
[EventDate "2023.05.19"]
[EventType "swiss"]
[EventCountry "TUR"]
[TimeControl "5400+30"]
[WhiteClock "0:00:40"]

1. d4 d5 2. Nf3 Nf6 {[%emt 0:00:30]} 3. c4 {[%emt 0:04:00]} e6 {[%emt 0:00:30]} 4. g3 {[%emt 0:00:30]} a6 {[%emt 0:00:30]} 5. Nbd2 {[%emt 0:09:30]} dxc4 {[%emt 0:00:30]} 6. Nxc4 {[%emt 0:00:30]} c5 {[%emt 0:00:30]} 7. Bg2 {[%emt 0:08:30]} Nc6 {[%emt 0:02:30]} 8. Be3 {[%emt 0:08:30]} cxd4 {[%emt 0:04:30]} 9. Nxd4 {[%emt 0:00:30]} Bb4+ {[%emt 0:00:30]} 10. Kf1 {[%emt 0:00:30]} Nxd4 {[%emt 0:00:30]} 11. Qa4+ {[%emt 0:00:30]} Nb5 {[%emt 0:03:30]} 12. Qxb4 {[%emt 0:12:30]} Nd5 {[%emt 0:00:30]} 13. Qc5 {[%emt 0:10:30]} Nxe3+ {[%emt 0:01:30]} 14. Nxe3 {[%emt 0:00:30]} Qe7 {[%emt 0:02:30]} 15. Rc1 {[%emt 0:04:30]} Qxc5 {[%emt 0:01:30]} 16. Rxc5 {[%emt 0:00:30]} Rb8 {[%emt 0:01:30]} 17. f4 {[%emt 0:02:30]} Ke7 {[%emt 0:00:30]} 18. Kf2 {[%emt 0:04:30]} Bd7 {[%emt 0:01:30]} 19. Rd1 {[%emt 0:04:30]} Rhd8 {[%emt 0:06:30]} 20. Nc4 {[%emt 0:08:08]} b6 {[%emt 0:01:30]} 21. Re5 {[%emt 0:03:35]} Rdc8 {[%emt 0:00:30]} 22. b3 {[%emt 0:01:14]} Nc3 {[%emt 0:02:30]} 23. Rd2 {[%emt 0:00:26]} Bb5 {[%emt 0:02:30]} 24. Nd6 {[%emt 0:02:47]} Rd8 {[%emt 0:00:00]} 25. Nxb5 {[%emt 0:04:53]} axb5 {[%emt 0:00:00]} 26. Ke1 {[%emt 0:03:13]} b4 {[%emt 0:01:30]} 27. Rc2 {[%emt 0:03:28]} Rd1+ {[%emt 0:00:30]} 28. Kf2 {[%emt 0:00:15]} Ra1 {[%emt 0:01:30]} 29. g4 {[%emt 0:01:38]} Rc8 {[%emt 0:00:30]} 30. Kg3 {[%emt 0:01:08]} Rxa2 {[%emt 0:00:30]} 31. Rxa2 {[%emt 0:00:16]} Nxa2 {[%emt 0:00:30]} 32. Rb5 {[%emt 0:00:30]} Rc3+ {[%emt 0:00:30]} 33. Bf3 {[%emt 0:00:30]} Rxb3 {[%emt 0:00:30]} 34. Rxb6 {[%emt 0:00:30]} Ra3 {[%emt 0:00:30]} 35. Rb7+ {[%emt 0:00:30]} Kd6 {[%emt 0:00:30]} 36. Rxf7 {[%emt 0:00:30]} b3 {[%emt 0:03:30]} 37. Rxg7 {[%emt 0:00:12]} Nb4 {[%emt 0:00:00]} 38. Rb7 {[%emt 0:01:00]} Kc5 {[%emt 0:00:00]} 39. Be4 {[%emt 0:00:15]} b2+ {[%emt 0:01:30]} 40. Kh4 {[%emt 0:00:42]} Re3 {[%emt 0:01:30]} 41. Bxh7 {[%emt 0:00:52]} Rxe2 {[%emt 0:00:00]} 42. h3 {[%emt 0:00:00]} Nd5 {[%emt 0:01:00]} 43. Kg5 {[%emt 0:00:29]} e5 {[%emt 0:00:30]} 44. fxe5 {[%emt 0:01:03]} Rxe5+ {[%emt 0:00:00]} 45. Kh6 {[%emt 0:00:43]} Re6+ {[%emt 0:03:00]} 46. Kg5 {[%emt 0:00:28]} Nb6 {[%emt 0:00:00]} 47. h4 {[%emt 0:00:47]} Kc6 {[%emt 0:01:00]} 48. Rb8 {[%emt 0:00:42]} Re7 {[%emt 0:00:30]} 49. Rf8 {[%emt 0:00:26]} Rxh7 {[%emt 0:00:30]} 50. Rf1 {[%emt 0:00:26]} Nc4 {[%emt 0:00:30]} 51. h5 {[%emt 0:00:49]} Nd2 {[%emt 0:00:00]} 52. Rd1 {[%emt 0:00:00]} Rg7+ {[%emt 0:02:00]} 53. Kf5 {[%emt 0:00:48]} Rf7+ {[%emt 0:00:30]} 54. Kg6 {[%emt 0:00:25]} Rf1 {[%emt 0:00:30]} 0-1

[Event "Turkish Youth Championships 2023"]
[Site "Samsun"]
[Date "2023.05.25"]
[Round "9.14"]
[White "Atis, Hasan"]
[Black "Engel, Ecrin Tuana"]
[Result "1-0"]
[WhiteElo "1890"]
[BlackElo "1343"]
[PlyCount "75"]
[EventDate "2023.05.19"]
[EventType "swiss"]
[EventCountry "TUR"]
[TimeControl "5400+30"]
[BlackClock "0:00:35"]

1. e4 c5 2. Nf3 Nc6 3. Bb5 e5 4. O-O Bd6 5. c3 {[%emt 0:03:00]} a6 {[%emt 0:06:00]} 6. Bxc6 {[%emt 0:01:30]} dxc6 {[%emt 0:00:30]} 7. d4 {[%emt 0:00:30]} cxd4 {[%emt 0:03:30]} 8. cxd4 {[%emt 0:00:00]} Qc7 {[%emt 0:00:00]} 9. dxe5 {[%emt 0:03:00]} Bxe5 {[%emt 0:00:00]} 10. Nxe5 {[%emt 0:00:30]} Qxe5 {[%emt 0:00:30]} 11. Nd2 {[%emt 0:01:30]} Be6 {[%emt 0:01:30]} 12. Qc2 {[%emt 0:02:30]} Nf6 {[%emt 0:02:30]} 13. Re1 {[%emt 0:00:00]} h6 {[%emt 0:08:30]} 14. Nf3 {[%emt 0:00:00]} Qc7 {[%emt 0:00:30]} 15. b3 {[%emt 0:03:30]} O-O-O {[%emt 0:03:30]} 16. Bb2 {[%emt 0:00:30]} Qe7 {[%emt 0:00:30]} 17. Rac1 {[%emt 0:03:30]} Rhg8 {[%emt 0:09:30]} 18. Qc3 {[%emt 0:04:30]} Ne8 {[%emt 0:08:30]} 19. Qa5 {[%emt 0:01:30]} Qc7 {[%emt 0:01:30]} 20. Qc5 {[%emt 0:00:30]} f6 {[%emt 0:06:30]} 21. Bc3 {[%emt 0:02:30]} Qd6 {[%emt 0:02:30]} 22. Qa7 {[%emt 0:01:30]} Qb8 {[%emt 0:00:30]} 23. Qe3 {[%emt 0:01:30]} Nc7 {[%emt 0:04:30]} 24. Ba5 {[%emt 0:02:30]} Rd7 {[%emt 0:01:30]} 25. Nd4 {[%emt 0:00:30]} Re8 {[%emt 0:05:30]} 26. Nc2 {[%emt 0:31:30]} Rde7 {[%emt 0:18:19]} 27. Nb4 {[%emt 0:02:30]} Bg8 {[%emt 0:08:08]} 28. Qh3+ {[%emt 0:21:50]} Be6 {[%emt 0:04:03]} 29. Qc3 {[%emt 0:00:03]} Qa8 {[%emt 0:01:25]} 30. Red1 {[%emt 0:02:33]} Rd8 {[%emt 0:01:59]} 31. Qg3 {[%emt 0:01:39]} Red7 {[%emt 0:01:24]} 32. Nd5 {[%emt 0:03:21]} Bxd5 {[%emt 0:01:27]} 33. exd5 {[%emt 0:00:11]} Re8 {[%emt 0:01:25]} 34. dxc6 {[%emt 0:00:48]} Rxd1+ {[%emt 0:01:13]} 35. Rxd1 {[%emt 0:00:30]} Qb8 {[%emt 0:00:26]} 36. Qg4+ {[%emt 0:00:00]} Re6 {[%emt 0:00:09]} 37. Rd8+ {[%emt 0:01:52]} Kxd8 {[%emt 0:00:42]} 38. Qxe6 {[%emt 0:00:03]} 1-0

[Event "Turkish Youth Championships 2023"]
[Site "Samsun"]
[Date "2023.05.25"]
[Round "9.15"]
[White "Oner, Cinar"]
[Black "Yildiz, Elif Zeren"]
[Result "0-1"]
[WhiteElo "1436"]
[BlackElo "1722"]
[PlyCount "76"]
[EventDate "2023.05.19"]
[EventType "swiss"]
[EventCountry "TUR"]
[TimeControl "5400+30"]
[WhiteClock "0:51:00"]

1. e4 g6 2. Nf3 Bg7 3. d4 d6 {[%emt 0:01:00]} 4. h3 {[%emt 0:05:30]} a6 {[%emt 0:02:30]} 5. a4 {[%emt 0:01:30]} b6 {[%emt 0:00:00]} 6. b3 {[%emt 0:02:30]} Bb7 {[%emt 0:02:00]} 7. Bd3 {[%emt 0:02:30]} c5 {[%emt 0:04:30]} 8. Bb2 {[%emt 0:00:00]} Nc6 {[%emt 0:06:30]} 9. Bc4 {[%emt 0:09:00]} e6 {[%emt 0:05:30]} 10. O-O {[%emt 0:00:30]} Nge7 {[%emt 0:00:30]} 11. Bc3 {[%emt 0:06:30]} cxd4 {[%emt 0:04:30]} 12. Nxd4 {[%emt 0:02:30]} Nxd4 {[%emt 0:01:30]} 13. Bxd4 {[%emt 0:00:30]} e5 {[%emt 0:00:30]} 14. Bb2 {[%emt 0:01:30]} Bxe4 {[%emt 0:02:30]} 15. Nc3 {[%emt 0:01:30]} Bb7 {[%emt 0:02:30]} 16. Nd5 {[%emt 0:00:30]} O-O {[%emt 0:03:30]} 17. b4 {[%emt 0:00:30]} Rc8 {[%emt 0:02:30]} 18. Bb3 {[%emt 0:06:30]} Nxd5 {[%emt 0:05:30]} 19. Bxd5 {[%emt 0:00:30]} Bxd5 {[%emt 0:00:30]} 20. Qxd5 {[%emt 0:00:30]} Rxc2 {[%emt 0:01:30]} 21. Ba3 {[%emt 0:00:00]} Qa8 {[%emt 0:09:30]} 22. Qxd6 {[%emt 0:02:00]} Rc6 {[%emt 0:00:00]} 23. Qd3 {[%emt 0:00:30]} Rd8 {[%emt 0:00:00]} 24. Qe2 {[%emt 0:00:30]} Rdc8 {[%emt 0:04:30]} 25. b5 {[%emt 0:04:30]} Rc2 {[%emt 0:01:30]} 26. Qe3 {[%emt 0:00:30]} axb5 {[%emt 0:00:30]} 27. axb5 {[%emt 0:00:00]} Qa5 {[%emt 0:06:30]} 28. Rfb1 {[%emt 0:02:00]} e4 {[%emt 0:02:30]} 29. Bb2 {[%emt 0:02:30]} Rxb2 {[%emt 0:00:30]} 30. Rxa5 {[%emt 0:00:30]} Rxb1+ {[%emt 0:00:30]} 31. Kh2 {[%emt 0:00:00]} bxa5 {[%emt 0:00:00]} 32. Qb6 {[%emt 0:00:00]} Be5+ {[%emt 0:00:00]} 33. g3 {[%emt 0:00:30]} Rb8 {[%emt 0:00:00]} 34. Qxa5 {[%emt 0:00:30]} R1xb5 {[%emt 0:00:00]} 35. Qa4 {[%emt 0:00:00]} e3 {[%emt 0:00:30]} 36. fxe3 {[%emt 0:00:00]} Rb2+ {[%emt 0:00:30]} 37. Kg1 {[%emt 0:00:00]} Rc8 {[%emt 0:00:30]} 38. Qd1 {[%emt 0:00:00]} Ra2 {[%emt 0:00:00]} 0-1

[Event "Turkish Youth Championships 2023"]
[Site "Samsun"]
[Date "2023.05.25"]
[Round "9.16"]
[White "Topaloglu, Mehmet Utkan"]
[Black "Zerey, Demhat"]
[Result "0-1"]
[WhiteElo "1511"]
[BlackElo "1710"]
[PlyCount "86"]
[EventDate "2023.05.19"]
[EventType "swiss"]
[EventCountry "TUR"]
[TimeControl "5400+30"]
[WhiteClock "0:15:25"]

1. e4 c5 2. c3 {[%emt 0:00:30]} d5 {[%emt 0:05:30]} 3. exd5 {[%emt 0:00:30]} Qxd5 {[%emt 0:00:30]} 4. d4 {[%emt 0:00:30]} g6 {[%emt 0:00:30]} 5. Nf3 {[%emt 0:01:30]} Bg7 {[%emt 0:00:30]} 6. Be3 {[%emt 0:01:30]} Nf6 {[%emt 0:00:00]} 7. dxc5 {[%emt 0:03:30]} Qxd1+ {[%emt 0:01:00]} 8. Kxd1 {[%emt 0:00:30]} Ng4 {[%emt 0:00:30]} 9. Nbd2 {[%emt 0:04:30]} Nxe3+ {[%emt 0:03:30]} 10. fxe3 {[%emt 0:00:00]} O-O {[%emt 0:01:30]} 11. Bb5 {[%emt 0:14:00]} Bd7 {[%emt 0:02:30]} 12. a4 {[%emt 0:04:30]} Rc8 {[%emt 0:13:30]} 13. c6 {[%emt 0:11:30]} Nxc6 {[%emt 0:02:30]} 14. Ke2 {[%emt 0:03:30]} Rd8 {[%emt 0:03:30]} 15. Nd4 {[%emt 0:07:30]} Rac8 {[%emt 0:01:30]} 16. Rad1 {[%emt 0:06:30]} Bg4+ {[%emt 0:02:30]} 17. N2f3 {[%emt 0:00:30]} Na5 {[%emt 0:12:30]} 18. h3 {[%emt 0:00:30]} Bd7 {[%emt 0:00:00]} 19. Bxd7 {[%emt 0:03:30]} Rxd7 {[%emt 0:00:00]} 20. Nc2 {[%emt 0:01:30]} Rxd1 {[%emt 0:04:30]} 21. Rxd1 {[%emt 0:00:30]} Nc4 {[%emt 0:00:30]} 22. Rb1 {[%emt 0:00:30]} f5 {[%emt 0:00:30]} 23. Nd2 {[%emt 0:00:30]} Kf7 {[%emt 0:00:30]} 24. Nd4 {[%emt 0:00:30]} Bh6 {[%emt 0:00:30]} 25. Nc2 {[%emt 0:12:30]} e5 {[%emt 0:15:30]} 26. Nxc4 {[%emt 0:01:30]} Rxc4 {[%emt 0:00:00]} 27. Rd1 {[%emt 0:01:30]} Ke6 {[%emt 0:01:00]} 28. Nb4 {[%emt 0:00:30]} a5 {[%emt 0:03:30]} 29. Nd5 {[%emt 0:00:30]} Rxa4 {[%emt 0:00:30]} 30. Nc7+ {[%emt 0:00:30]} Ke7 {[%emt 0:00:30]} 31. Nd5+ {[%emt 0:00:52]} Kf7 {[%emt 0:00:00]} 32. Nb6 {[%emt 0:02:02]} Re4 {[%emt 0:03:00]} 33. Rd7+ {[%emt 0:01:02]} Ke6 {[%emt 0:00:30]} 34. Rxb7 {[%emt 0:01:03]} Bxe3 {[%emt 0:02:30]} 35. Nd7 {[%emt 0:02:29]} Bc5+ {[%emt 0:02:30]} 36. Kd3 {[%emt 0:01:42]} Bd6 {[%emt 0:00:00]} 37. c4 {[%emt 0:00:38]} Rd4+ {[%emt 0:01:00]} 38. Kc3 {[%emt 0:00:30]} Bb4+ {[%emt 0:00:00]} 39. Kb3 {[%emt 0:00:13]} Rxd7 {[%emt 0:00:00]} 40. Rb6+ {[%emt 0:00:22]} Rd6 {[%emt 0:00:00]} 41. Rb7 {[%emt 0:00:00]} e4 {[%emt 0:00:00]} 42. Rxh7 {[%emt 0:00:21]} e3 {[%emt 0:00:30]} 43. Rh8 {[%emt 0:00:00]} Rd7 {[%emt 0:00:00]} 0-1

[Event "Turkish Youth Championships 2023"]
[Site "Samsun"]
[Date "2023.05.25"]
[Round "9.17"]
[White "Derbentli, Refik"]
[Black "Binboga, Yaman"]
[Result "0-1"]
[WhiteElo "1453"]
[BlackElo "1653"]
[PlyCount "88"]
[EventDate "2023.05.19"]
[EventType "swiss"]
[EventCountry "TUR"]
[TimeControl "5400+30"]
[WhiteClock "0:10:20"]

1. e4 c5 2. Nf3 d6 {[%emt 0:01:30]} 3. c3 {[%emt 0:07:00]} Nf6 {[%emt 0:00:30]} 4. h3 {[%emt 0:00:30]} Nbd7 {[%emt 0:00:00]} 5. Bd3 {[%emt 0:00:30]} g6 {[%emt 0:00:00]} 6. Bc2 {[%emt 0:00:30]} Bg7 {[%emt 0:00:30]} 7. O-O {[%emt 0:00:00]} O-O {[%emt 0:00:30]} 8. d4 {[%emt 0:00:00]} e5 {[%emt 0:04:30]} 9. dxe5 {[%emt 0:06:30]} dxe5 {[%emt 0:00:30]} 10. Qe2 {[%emt 0:00:30]} Qc7 {[%emt 0:00:30]} 11. a4 {[%emt 0:01:30]} b6 {[%emt 0:01:30]} 12. Na3 {[%emt 0:07:30]} a6 {[%emt 0:01:30]} 13. Bg5 {[%emt 0:06:30]} Bb7 {[%emt 0:00:30]} 14. Rad1 {[%emt 0:00:30]} h6 {[%emt 0:00:30]} 15. Bc1 {[%emt 0:00:30]} Bc6 {[%emt 0:06:30]} 16. b4 {[%emt 0:10:30]} Rfd8 {[%emt 0:12:30]} 17. b5 {[%emt 0:09:30]} axb5 {[%emt 0:00:30]} 18. axb5 {[%emt 0:00:30]} Bb7 {[%emt 0:00:30]} 19. Rd2 {[%emt 0:04:30]} Nf8 {[%emt 0:03:30]} 20. Rfd1 {[%emt 0:00:30]} Rxd2 {[%emt 0:00:30]} 21. Rxd2 {[%emt 0:03:30]} Ne6 {[%emt 0:00:30]} 22. Nc4 {[%emt 0:03:30]} Nf4 {[%emt 0:01:30]} 23. Qe1 {[%emt 0:04:30]} N6h5 {[%emt 0:02:30]} 24. Nd6 {[%emt 0:01:30]} Bc8 {[%emt 0:02:30]} 25. Nxc8 {[%emt 0:00:30]} Qxc8 {[%emt 0:00:30]} 26. Kh2 {[%emt 0:05:30]} Nxg2 {[%emt 0:00:30]} 27. Qd1 {[%emt 0:07:30]} Ngf4 {[%emt 0:02:30]} 28. Ng1 {[%emt 0:00:30]} Bf8 {[%emt 0:13:30]} 29. c4 {[%emt 0:02:45]} Qe6 {[%emt 0:00:30]} 30. Bb3 {[%emt 0:01:47]} Nf6 {[%emt 0:00:30]} 31. f3 {[%emt 0:02:10]} Be7 {[%emt 0:01:30]} 32. Ra2 {[%emt 0:02:50]} Rxa2+ {[%emt 0:00:30]} 33. Bxa2 {[%emt 0:00:05]} N6h5 {[%emt 0:00:30]} 34. Qf1 {[%emt 0:01:23]} Bh4 {[%emt 0:00:00]} 35. Ne2 {[%emt 0:00:47]} Nxe2 {[%emt 0:02:00]} 36. Qxe2 {[%emt 0:00:30]} Bg3+ {[%emt 0:00:00]} 37. Kg2 {[%emt 0:00:14]} Bf4 {[%emt 0:00:00]} 38. Bd2 {[%emt 0:01:09]} Bxd2 {[%emt 0:00:30]} 39. Qxd2 {[%emt 0:00:30]} Nf4+ {[%emt 0:00:00]} 40. Kf2 {[%emt 0:00:00]} Nxh3+ {[%emt 0:00:00]} 41. Ke3 {[%emt 0:02:35]} Ng5 {[%emt 0:01:30]} 42. Qd8+ {[%emt 0:00:17]} Kg7 {[%emt 0:00:00]} 43. Bb3 {[%emt 0:00:15]} Qf6 {[%emt 0:01:00]} 44. Qd3 {[%emt 0:00:40]} Qxf3+ {[%emt 0:00:00]} 0-1